[Event "Late-Titled-Tuesday-Blitz-March-05-2024"]
[Site "Chess.com"]
[Date "2024.03.05"]
[Round "7"]
[White "OPQRC"]
[Black "esrosenberg"]
[Result "1-0"]
[WhiteElo "2567"]
[BlackElo "2443"]
[TimeControl "180+1"]
[EndTime "15:13:47 PST"]
[Termination "OPQRC won by resignation"]

1. e4 {[%clk 0:03:00.9]} 1... e6 {[%clk 0:03:00]} 2. d4 {[%clk 0:03:00.7]} 2...
d5 {[%clk 0:03:00.7]} 3. Nd2 {[%clk 0:02:57.9]} 3... c5 {[%clk 0:03:00.2]} 4.
dxc5 {[%clk 0:02:51.1]} 4... Bxc5 {[%clk 0:02:59.1]} 5. Bd3 {[%clk 0:02:50.2]}
5... Nf6 {[%clk 0:02:53.1]} 6. Qe2 {[%clk 0:02:48.2]} 6... Nc6 {[%clk
0:02:43.7]} 7. Ngf3 {[%clk 0:02:47.6]} 7... a6 {[%clk 0:02:32.6]} 8. O-O {[%clk
0:02:47.2]} 8... h6 {[%clk 0:02:24.5]} 9. b3 {[%clk 0:02:31.5]} 9... O-O {[%clk
0:01:54.2]} 10. Bb2 {[%clk 0:02:31.1]} 10... Re8 {[%clk 0:01:46.4]} 11. Rad1
{[%clk 0:02:30.8]} 11... e5 {[%clk 0:01:45.7]} 12. exd5 {[%clk 0:02:24.5]} 12...
Nxd5 {[%clk 0:01:45.5]} 13. Qe4 {[%clk 0:02:10.6]} 13... f5 {[%clk 0:01:41.7]}
14. Qc4 {[%clk 0:02:08.8]} 14... Qd6 {[%clk 0:01:36.6]} 15. Ne4 {[%clk
0:02:01.5]} 15... fxe4 {[%clk 0:01:34.8]} 16. Bxe4 {[%clk 0:02:02.4]} 16... Bd4
{[%clk 0:00:44]} 17. Nxd4 {[%clk 0:01:57.3]} 17... exd4 {[%clk 0:00:42.6]} 18.
Qxd5+ {[%clk 0:01:52.1]} 18... Qxd5 {[%clk 0:00:39.5]} 19. Bxd5+ {[%clk
0:01:53]} 19... Kh7 {[%clk 0:00:34.2]} 20. Bxd4 {[%clk 0:01:46.3]} 20... Bf5
{[%clk 0:00:19.9]} 21. c4 {[%clk 0:01:42.7]} 21... Rad8 {[%clk 0:00:19.4]} 22.
Bb6 {[%clk 0:01:41.9]} 22... Rd7 {[%clk 0:00:17.9]} 23. Rfe1 {[%clk 0:01:40.9]}
23... Rde7 {[%clk 0:00:16.8]} 24. Rxe7 {[%clk 0:01:40.6]} 24... Rxe7 {[%clk
0:00:17.7]} 25. h3 {[%clk 0:01:40]} 25... Re2 {[%clk 0:00:15.3]} 26. a4 {[%clk
0:01:23.2]} 26... Bc2 {[%clk 0:00:10.5]} 27. Rc1 {[%clk 0:01:17]} 27... Bxb3
{[%clk 0:00:10.3]} 28. a5 {[%clk 0:01:11.5]} 28... Ra2 {[%clk 0:00:09.7]} 29.
Rc3 {[%clk 0:01:05.6]} 29... Bc2 {[%clk 0:00:05.5]} 30. Rxc2 {[%clk 0:01:03.9]}
1-0

[Event "Late-Titled-Tuesday-Blitz-March-05-2024"]
[Site "Chess.com"]
[Date "2024.03.05"]
[Round "7"]
[White "Veleamater"]
[Black "PepeCuenca"]
[Result "0-1"]
[WhiteElo "2322"]
[BlackElo "2678"]
[TimeControl "180+1"]
[EndTime "15:13:47 PST"]
[Termination "PepeCuenca won by resignation"]

1. g3 {[%clk 0:03:00.9]} 1... g6 {[%clk 0:02:53.1]} 2. Bg2 {[%clk 0:03:01.5]}
2... Bg7 {[%clk 0:02:54]} 3. d3 {[%clk 0:03:02]} 3... c5 {[%clk 0:02:53.6]} 4.
Nc3 {[%clk 0:03:02.4]} 4... Nc6 {[%clk 0:02:53.8]} 5. e4 {[%clk 0:03:03.1]} 5...
Rb8 {[%clk 0:02:52.3]} 6. f4 {[%clk 0:03:02.8]} 6... b5 {[%clk 0:02:52.6]} 7.
Nf3 {[%clk 0:03:02]} 7... b4 {[%clk 0:02:52.6]} 8. Ne2 {[%clk 0:03:02.2]} 8...
d6 {[%clk 0:02:52.7]} 9. h3 {[%clk 0:03:02.2]} 9... e6 {[%clk 0:02:50.9]} 10.
O-O {[%clk 0:03:02]} 10... Nge7 {[%clk 0:02:50.8]} 11. g4 {[%clk 0:03:01.9]}
11... f5 {[%clk 0:02:47.1]} 12. Ng3 {[%clk 0:03:00]} 12... O-O {[%clk
0:02:23.3]} 13. g5 {[%clk 0:03:00.3]} 13... d5 {[%clk 0:02:11.6]} 14. e5 {[%clk
0:02:57.5]} 14... d4 {[%clk 0:02:11]} 15. h4 {[%clk 0:02:57.1]} 15... Nd5 {[%clk
0:02:09.5]} 16. Qe2 {[%clk 0:02:55]} 16... Rf7 {[%clk 0:01:59]} 17. h5 {[%clk
0:02:54.6]} 17... Bb7 {[%clk 0:01:56.7]} 18. Nh4 {[%clk 0:02:54.4]} 18... Nce7
{[%clk 0:01:52.9]} 19. Bd2 {[%clk 0:02:51.1]} 19... a5 {[%clk 0:01:51.9]} 20.
Kh2 {[%clk 0:02:48.3]} 20... Nb6 {[%clk 0:01:39.9]} 21. Rh1 {[%clk 0:02:45.5]}
21... Qd7 {[%clk 0:01:32.1]} 22. Bf3 {[%clk 0:02:34.5]} 22... Bxf3 {[%clk
0:01:26.6]} 23. Nxf3 {[%clk 0:02:33.9]} 23... Qc6 {[%clk 0:01:24.5]} 24. Kg2
{[%clk 0:02:30.5]} 24... Rd8 {[%clk 0:01:16.9]} 25. Kf2 {[%clk 0:02:30]} 25...
c4 {[%clk 0:01:07.9]} 26. Nh4 {[%clk 0:02:22.1]} 26... c3 {[%clk 0:01:04.2]} 27.
bxc3 {[%clk 0:02:21.5]} 27... bxc3 {[%clk 0:00:59.7]} 28. Bc1 {[%clk 0:02:21.6]}
28... Nbd5 {[%clk 0:00:47.6]} 29. Ng2 {[%clk 0:02:19.8]} 29... Rb8 {[%clk
0:00:45.8]} 30. Ba3 {[%clk 0:02:19]} 30... Qa4 {[%clk 0:00:38.9]} 31. Bxe7
{[%clk 0:02:15.2]} 31... Rxe7 {[%clk 0:00:39.8]} 32. Nh4 {[%clk 0:02:09.8]}
32... Rb2 {[%clk 0:00:35]} 33. hxg6 {[%clk 0:02:03.6]} 33... hxg6 {[%clk
0:00:26.5]} 34. Nxg6 {[%clk 0:01:57]} 34... Rxc2 {[%clk 0:00:21.5]} 35. Nxe7+
{[%clk 0:01:54.9]} 35... Nxe7 {[%clk 0:00:22.4]} 36. Rhc1 {[%clk 0:01:50.3]}
36... Rxe2+ {[%clk 0:00:20.9]} 37. Nxe2 {[%clk 0:01:50.2]} 37... Nd5 {[%clk
0:00:20.4]} 38. Rab1 {[%clk 0:01:47.4]} 38... Qxa2 {[%clk 0:00:16.6]} 39. Kf3
{[%clk 0:01:47.6]} 39... Qd2 {[%clk 0:00:16.1]} 40. Re1 {[%clk 0:01:37.4]} 40...
Qxd3+ {[%clk 0:00:13.9]} 41. Kg2 {[%clk 0:01:34.7]} 41... Ne3+ {[%clk
0:00:12.5]} 42. Kg1 {[%clk 0:01:31]} 42... Qe4 {[%clk 0:00:11.8]} 0-1

[Event "Late-Titled-Tuesday-Blitz-March-05-2024"]
[Site "Chess.com"]
[Date "2024.03.05"]
[Round "7"]
[White "jcibarra"]
[Black "kids2010"]
[Result "1-0"]
[WhiteElo "2937"]
[BlackElo "2803"]
[TimeControl "180+1"]
[EndTime "15:13:49 PST"]
[Termination "jcibarra won by resignation"]

1. e4 {[%clk 0:03:00.9]} 1... c6 {[%clk 0:02:57.9]} 2. Nf3 {[%clk 0:03:01.2]}
2... d5 {[%clk 0:02:57.9]} 3. d3 {[%clk 0:03:01.9]} 3... dxe4 {[%clk 0:02:57.8]}
4. dxe4 {[%clk 0:03:02.6]} 4... Qxd1+ {[%clk 0:02:58.4]} 5. Kxd1 {[%clk
0:03:03.5]} 5... Nf6 {[%clk 0:02:58.3]} 6. Nbd2 {[%clk 0:03:02.8]} 6... g6
{[%clk 0:02:57]} 7. Ne5 {[%clk 0:03:02.9]} 7... Bg7 {[%clk 0:02:56.8]} 8. Nd3
{[%clk 0:03:02.6]} 8... b6 {[%clk 0:02:56.8]} 9. f3 {[%clk 0:03:01.6]} 9... c5
{[%clk 0:02:54.8]} 10. c3 {[%clk 0:03:01]} 10... Nc6 {[%clk 0:02:54.5]} 11. Kc2
{[%clk 0:03:01.4]} 11... Bb7 {[%clk 0:02:54.7]} 12. Nc4 {[%clk 0:03:01]} 12...
O-O {[%clk 0:02:50.7]} 13. a4 {[%clk 0:03:01]} 13... Nd7 {[%clk 0:02:50.3]} 14.
Bf4 {[%clk 0:02:50.4]} 14... f5 {[%clk 0:02:38.8]} 15. exf5 {[%clk 0:02:45]}
15... gxf5 {[%clk 0:02:37.8]} 16. Re1 {[%clk 0:02:40]} 16... Rae8 {[%clk
0:02:35.9]} 17. Nde5 {[%clk 0:02:33.2]} 17... Ndxe5 {[%clk 0:02:35.4]} 18. Nxe5
{[%clk 0:02:33.9]} 18... Nxe5 {[%clk 0:02:34.8]} 19. Bxe5 {[%clk 0:02:34.2]}
19... Bxe5 {[%clk 0:02:35]} 20. Rxe5 {[%clk 0:02:34.2]} 20... Bc8 {[%clk
0:02:07]} 21. Bb5 {[%clk 0:02:31.6]} 21... Kf7 {[%clk 0:02:01.5]} 22. Rhe1
{[%clk 0:02:24.4]} 22... e6 {[%clk 0:01:57.9]} 23. Bxe8+ {[%clk 0:02:21.3]}
23... Rxe8 {[%clk 0:01:58.8]} 24. g4 {[%clk 0:02:19.4]} 24... Rg8 {[%clk
0:01:01.2]} 25. gxf5 {[%clk 0:02:16.5]} 25... exf5 {[%clk 0:01:02.1]} 26. Re7+
{[%clk 0:02:06]} 26... Kf6 {[%clk 0:01:01.2]} 27. R1e2 {[%clk 0:02:05.5]} 27...
f4 {[%clk 0:00:55.1]} 28. Rxa7 {[%clk 0:02:00.3]} 28... Bf5+ {[%clk 0:00:55.1]}
29. Kb3 {[%clk 0:02:00.7]} 29... Be6+ {[%clk 0:00:55.2]} 30. Ka3 {[%clk
0:01:53.4]} 30... Rg1 {[%clk 0:00:54.5]} 31. b3 {[%clk 0:01:52.3]} 31... Rb1
{[%clk 0:00:51.2]} 32. c4 {[%clk 0:01:50.5]} 32... Bf5 {[%clk 0:00:38.8]} 33.
Rb7 {[%clk 0:01:42.7]} 33... Ra1+ {[%clk 0:00:38.9]} 34. Ra2 {[%clk 0:01:41.7]}
34... Rf1 {[%clk 0:00:38.6]} 35. Rxb6+ {[%clk 0:01:42]} 35... Ke5 {[%clk
0:00:38.7]} 36. a5 {[%clk 0:01:38.2]} 36... Rxf3 {[%clk 0:00:33.5]} 37. a6
{[%clk 0:01:34.2]} 37... Kd4 {[%clk 0:00:33.2]} 38. a7 {[%clk 0:01:29.9]} 38...
Be4 {[%clk 0:00:32.9]} 39. Rd6+ {[%clk 0:01:16.5]} 39... Kc3 {[%clk 0:00:31.5]}
40. Rd5 {[%clk 0:01:15.3]} 1-0

[Event "Late-Titled-Tuesday-Blitz-March-05-2024"]
[Site "Chess.com"]
[Date "2024.03.05"]
[Round "7"]
[White "Pachonpower"]
[Black "Akhayan"]
[Result "1-0"]
[WhiteElo "2302"]
[BlackElo "2382"]
[TimeControl "180+1"]
[EndTime "15:13:49 PST"]
[Termination "Pachonpower won by resignation"]

1. e4 {[%clk 0:02:58.9]} 1... c5 {[%clk 0:02:58.1]} 2. d4 {[%clk 0:02:58.6]}
2... cxd4 {[%clk 0:02:57.7]} 3. c3 {[%clk 0:02:58.8]} 3... dxc3 {[%clk
0:02:57.3]} 4. Nxc3 {[%clk 0:02:58.9]} 4... e6 {[%clk 0:02:57.9]} 5. Nf3 {[%clk
0:02:59]} 5... d6 {[%clk 0:02:58.4]} 6. Bc4 {[%clk 0:02:59.6]} 6... Nf6 {[%clk
0:02:58.3]} 7. O-O {[%clk 0:03:00.2]} 7... Be7 {[%clk 0:02:59]} 8. Re1 {[%clk
0:03:00.8]} 8... O-O {[%clk 0:02:58.9]} 9. Bg5 {[%clk 0:02:58.8]} 9... h6 {[%clk
0:02:54.8]} 10. Bh4 {[%clk 0:02:59]} 10... Nc6 {[%clk 0:02:53.7]} 11. Rc1 {[%clk
0:02:52.5]} 11... Bd7 {[%clk 0:02:50.5]} 12. Qe2 {[%clk 0:02:50.7]} 12... a6
{[%clk 0:02:48.7]} 13. Rcd1 {[%clk 0:02:50.8]} 13... Qc7 {[%clk 0:02:45.8]} 14.
a3 {[%clk 0:02:46.6]} 14... Ne5 {[%clk 0:02:45.2]} 15. Nxe5 {[%clk 0:02:42.1]}
15... dxe5 {[%clk 0:02:45]} 16. Ba2 {[%clk 0:02:39.6]} 16... Bc6 {[%clk
0:02:35.4]} 17. g4 {[%clk 0:02:37.3]} 17... Nh7 {[%clk 0:02:28.9]} 18. Bg3
{[%clk 0:02:30.6]} 18... Rad8 {[%clk 0:02:11]} 19. Qc4 {[%clk 0:02:29.8]} 19...
Ng5 {[%clk 0:02:02.4]} 20. Kg2 {[%clk 0:02:00.1]} 20... Bf6 {[%clk 0:01:33.3]}
21. h4 {[%clk 0:01:53.8]} 21... Nh7 {[%clk 0:01:33]} 22. Nd5 {[%clk 0:01:49]}
22... exd5 {[%clk 0:01:29.4]} 23. exd5 {[%clk 0:01:48.1]} 23... Bxd5+ {[%clk
0:00:47.9]} 24. Rxd5 {[%clk 0:01:46.4]} 24... Qxc4 {[%clk 0:00:47.1]} 25. Bxc4
{[%clk 0:01:47]} 25... Rxd5 {[%clk 0:00:46.9]} 26. Bxd5 {[%clk 0:01:47.9]} 26...
Rd8 {[%clk 0:00:40.7]} 27. Bxb7 {[%clk 0:01:46.6]} 27... Rb8 {[%clk 0:00:41.3]}
28. Bxa6 {[%clk 0:01:46.1]} 28... Rxb2 {[%clk 0:00:41.9]} 29. a4 {[%clk
0:01:45.2]} 29... Ra2 {[%clk 0:00:41.2]} 30. Bb5 {[%clk 0:01:41.7]} 30... Nf8
{[%clk 0:00:37.7]} 31. Rd1 {[%clk 0:01:41.3]} 31... Ne6 {[%clk 0:00:37.5]} 32.
Rd7 {[%clk 0:01:36.9]} 32... Nd4 {[%clk 0:00:36.1]} 33. Bc4 {[%clk 0:01:29.3]}
33... Rxa4 {[%clk 0:00:35.4]} 34. Bxf7+ {[%clk 0:01:29.3]} 34... Kf8 {[%clk
0:00:35]} 35. Bd5 {[%clk 0:01:29.3]} 35... Ra5 {[%clk 0:00:28.2]} 36. Be4 {[%clk
0:01:25.6]} 36... Ra2 {[%clk 0:00:20.6]} 37. Bg6 {[%clk 0:01:17.3]} 37... Ra5
{[%clk 0:00:16.8]} 38. Rf7+ {[%clk 0:01:16.8]} 38... Kg8 {[%clk 0:00:16.6]} 39.
Rb7 {[%clk 0:01:15.3]} 39... Rc5 {[%clk 0:00:15.9]} 40. Rb8+ {[%clk 0:01:13.8]}
1-0

[Event "Late-Titled-Tuesday-Blitz-March-05-2024"]
[Site "Chess.com"]
[Date "2024.03.05"]
[Round "7"]
[White "zano2023"]
[Black "GoValya"]
[Result "0-1"]
[WhiteElo "2107"]
[BlackElo "2239"]
[TimeControl "180+1"]
[EndTime "15:13:50 PST"]
[Termination "GoValya won by resignation"]

1. d4 {[%clk 0:03:00.9]} 1... Nf6 {[%clk 0:02:58.2]} 2. Nd2 {[%clk 0:03:00.7]}
2... d5 {[%clk 0:02:54.8]} 3. Ngf3 {[%clk 0:02:59.7]} 3... g6 {[%clk 0:02:53.4]}
4. e3 {[%clk 0:02:59.8]} 4... Bg7 {[%clk 0:02:53.2]} 5. Bd3 {[%clk 0:03:00.3]}
5... O-O {[%clk 0:02:53]} 6. O-O {[%clk 0:02:54.1]} 6... b6 {[%clk 0:02:52.9]}
7. Qe2 {[%clk 0:02:53.2]} 7... c5 {[%clk 0:02:52.5]} 8. c3 {[%clk 0:02:51.6]}
8... Nc6 {[%clk 0:02:48.2]} 9. dxc5 {[%clk 0:02:48.4]} 9... bxc5 {[%clk
0:02:48]} 10. e4 {[%clk 0:02:49.3]} 10... d4 {[%clk 0:02:41.8]} 11. e5 {[%clk
0:02:44.6]} 11... Nd5 {[%clk 0:02:40.4]} 12. cxd4 {[%clk 0:02:29]} 12... cxd4
{[%clk 0:02:30.7]} 13. Be4 {[%clk 0:02:15.3]} 13... e6 {[%clk 0:02:09.6]} 14.
Qc4 {[%clk 0:01:57.5]} 14... Nxe5 {[%clk 0:01:58.7]} 15. Nxe5 {[%clk 0:01:52.3]}
15... Bxe5 {[%clk 0:01:59.6]} 16. Nf3 {[%clk 0:01:52.2]} 16... Bg7 {[%clk
0:01:57.2]} 17. Nxd4 {[%clk 0:01:51.8]} 17... Nb6 {[%clk 0:01:50.1]} 18. Qe2
{[%clk 0:01:30.8]} 18... Qxd4 {[%clk 0:01:47.7]} 19. Bxa8 {[%clk 0:01:27.5]}
19... Nxa8 {[%clk 0:01:48.6]} 20. Be3 {[%clk 0:01:25.2]} 20... Qa4 {[%clk
0:01:43.9]} 21. b3 {[%clk 0:01:23.8]} 21... Qa5 {[%clk 0:01:36.8]} 22. Rac1
{[%clk 0:01:23]} 22... Ba6 {[%clk 0:01:36]} 23. Rc4 {[%clk 0:01:21.2]} 23...
Bxc4 {[%clk 0:01:32.1]} 24. Qxc4 {[%clk 0:01:22.1]} 24... Nb6 {[%clk 0:01:31.9]}
25. Qe2 {[%clk 0:01:18.8]} 25... Nd5 {[%clk 0:01:28.8]} 26. Bg5 {[%clk
0:01:14.4]} 26... Nc3 {[%clk 0:01:24.9]} 27. Qe3 {[%clk 0:01:12.6]} 27... Qxa2
{[%clk 0:01:20]} 28. Bh6 {[%clk 0:01:11.9]} 28... Bxh6 {[%clk 0:01:14.6]} 29.
Qxh6 {[%clk 0:01:11.8]} 29... Qxb3 {[%clk 0:01:13.3]} 30. h4 {[%clk 0:01:12.3]}
30... Ne2+ {[%clk 0:01:10.3]} 31. Kh1 {[%clk 0:01:10.9]} 31... Qd5 {[%clk
0:01:10.2]} 32. Re1 {[%clk 0:01:06.8]} 32... Nc3 {[%clk 0:01:07.6]} 33. Re3
{[%clk 0:01:03]} 33... Nd1 {[%clk 0:01:04.6]} 34. Rf3 {[%clk 0:01:01.6]} 34...
a5 {[%clk 0:00:53.7]} 35. Qc1 {[%clk 0:01:01.3]} 35... a4 {[%clk 0:00:50.9]} 36.
Qc2 {[%clk 0:00:56.3]} 36... Ra8 {[%clk 0:00:38.8]} 37. Rd3 {[%clk 0:00:55.9]}
37... Nxf2+ {[%clk 0:00:33.8]} 38. Qxf2 {[%clk 0:00:54.7]} 38... Qxd3 {[%clk
0:00:33.5]} 0-1

[Event "Late-Titled-Tuesday-Blitz-March-05-2024"]
[Site "Chess.com"]
[Date "2024.03.05"]
[Round "7"]
[White "santosalberto1987"]
[Black "TheBigBoss04"]
[Result "0-1"]
[WhiteElo "2546"]
[BlackElo "2688"]
[TimeControl "180+1"]
[EndTime "15:13:58 PST"]
[Termination "TheBigBoss04 won by resignation"]

1. e4 {[%clk 0:03:00.9]} 1... c5 {[%clk 0:02:46.4]} 2. Nf3 {[%clk 0:02:59.8]}
2... d6 {[%clk 0:02:44]} 3. Bb5+ {[%clk 0:02:59]} 3... Nc6 {[%clk 0:02:41.2]} 4.
O-O {[%clk 0:02:51.9]} 4... Bd7 {[%clk 0:02:41]} 5. Re1 {[%clk 0:02:48.7]} 5...
Nf6 {[%clk 0:02:38.7]} 6. c3 {[%clk 0:02:47.3]} 6... a6 {[%clk 0:02:39.1]} 7.
Bf1 {[%clk 0:02:46.1]} 7... Bg4 {[%clk 0:02:39.7]} 8. h3 {[%clk 0:02:42]} 8...
Bxf3 {[%clk 0:02:39.9]} 9. Qxf3 {[%clk 0:02:41.8]} 9... g6 {[%clk 0:02:40.5]}
10. Qd1 {[%clk 0:02:21.6]} 10... Qb6 {[%clk 0:02:36.6]} 11. Na3 {[%clk 0:02:18]}
11... Bg7 {[%clk 0:02:36.3]} 12. Nc4 {[%clk 0:02:15.8]} 12... Qd8 {[%clk
0:02:21.8]} 13. a4 {[%clk 0:02:13.5]} 13... Nd7 {[%clk 0:02:19.1]} 14. d3 {[%clk
0:02:02.9]} 14... O-O {[%clk 0:02:17.5]} 15. Be3 {[%clk 0:02:00.2]} 15... b5
{[%clk 0:02:14.6]} 16. axb5 {[%clk 0:01:59.9]} 16... axb5 {[%clk 0:02:14.7]} 17.
Nd2 {[%clk 0:01:53.1]} 17... b4 {[%clk 0:01:59]} 18. Qc2 {[%clk 0:01:46.6]}
18... Qb6 {[%clk 0:01:49.3]} 19. Nc4 {[%clk 0:01:44.1]} 19... Qb7 {[%clk
0:01:46.3]} 20. f4 {[%clk 0:01:30.5]} 20... Rfb8 {[%clk 0:01:30]} 21. Qd2 {[%clk
0:01:24.8]} 21... bxc3 {[%clk 0:01:23.7]} 22. bxc3 {[%clk 0:01:24.7]} 22... Qb3
{[%clk 0:01:24.3]} 23. d4 {[%clk 0:00:59]} 23... Nf6 {[%clk 0:01:21.9]} 24. Bd3
{[%clk 0:00:53.6]} 24... Rxa1 {[%clk 0:01:04.6]} 25. Rxa1 {[%clk 0:00:52.9]}
25... Nxe4 {[%clk 0:00:57.3]} 26. Bxe4 {[%clk 0:00:39.1]} 26... Qxc4 {[%clk
0:00:56.5]} 27. Bxc6 {[%clk 0:00:26.2]} 27... cxd4 {[%clk 0:00:55.3]} 28. Bxd4
{[%clk 0:00:24.2]} 28... Qxc6 {[%clk 0:00:50.5]} 29. Bxg7 {[%clk 0:00:24.1]}
29... Kxg7 {[%clk 0:00:51.4]} 30. Qd4+ {[%clk 0:00:24.2]} 30... Kg8 {[%clk
0:00:51.6]} 31. Ra7 {[%clk 0:00:24.2]} 31... Rb2 {[%clk 0:00:46.4]} 0-1

[Event "Late-Titled-Tuesday-Blitz-March-05-2024"]
[Site "Chess.com"]
[Date "2024.03.05"]
[Round "7"]
[White "cristiano78"]
[Black "NtcPou"]
[Result "0-1"]
[WhiteElo "2277"]
[BlackElo "2031"]
[TimeControl "180+1"]
[EndTime "15:14:03 PST"]
[Termination "NtcPou won on time"]

1. d4 {[%clk 0:02:30.2]} 1... d5 {[%clk 0:02:59.1]} 2. c4 {[%clk 0:02:29.2]}
2... c6 {[%clk 0:02:59.5]} 3. Nf3 {[%clk 0:02:24.5]} 3... Nf6 {[%clk 0:02:59.2]}
4. Nc3 {[%clk 0:02:24]} 4... a6 {[%clk 0:02:59.1]} 5. Bg5 {[%clk 0:02:21.5]}
5... Ne4 {[%clk 0:02:58.8]} 6. Bd2 {[%clk 0:02:18.8]} 6... Nxd2 {[%clk
0:02:47.5]} 7. Qxd2 {[%clk 0:02:18.6]} 7... Bf5 {[%clk 0:02:47.4]} 8. e3 {[%clk
0:02:16.1]} 8... e6 {[%clk 0:02:47.6]} 9. Be2 {[%clk 0:02:12.5]} 9... Be7 {[%clk
0:02:47.2]} 10. O-O {[%clk 0:01:52.3]} 10... O-O {[%clk 0:02:46.9]} 11. a3
{[%clk 0:01:48.5]} 11... Nd7 {[%clk 0:02:46.9]} 12. Rfc1 {[%clk 0:01:44.8]}
12... Bf6 {[%clk 0:02:46.8]} 13. b4 {[%clk 0:01:41.8]} 13... b5 {[%clk
0:02:31.6]} 14. cxd5 {[%clk 0:01:35.9]} 14... cxd5 {[%clk 0:02:32.5]} 15. Nd1
{[%clk 0:01:30.2]} 15... Nb6 {[%clk 0:02:30.7]} 16. Nb2 {[%clk 0:01:30.1]} 16...
Nc4 {[%clk 0:02:28.5]} 17. Nxc4 {[%clk 0:01:28.3]} 17... dxc4 {[%clk 0:02:24.2]}
18. a4 {[%clk 0:01:24]} 18... Qd5 {[%clk 0:02:22.5]} 19. Ra3 {[%clk 0:01:21.8]}
19... Rfb8 {[%clk 0:02:20.7]} 20. Rca1 {[%clk 0:01:21.2]} 20... h6 {[%clk
0:02:13.7]} 21. Qc3 {[%clk 0:01:10.9]} 21... Be7 {[%clk 0:01:57.7]} 22. Nd2
{[%clk 0:00:59]} 22... a5 {[%clk 0:01:55.5]} 23. Bf3 {[%clk 0:00:46.3]} 23...
axb4 {[%clk 0:01:48.6]} 24. Qc1 {[%clk 0:00:29.2]} 24... Qd8 {[%clk 0:01:43.1]}
25. Bxa8 {[%clk 0:00:25.5]} 25... bxa3 {[%clk 0:01:42.8]} 26. Bf3 {[%clk
0:00:16.5]} 26... b4 {[%clk 0:01:37.6]} 27. Nxc4 {[%clk 0:00:14.6]} 27... Rc8
{[%clk 0:01:37.1]} 28. Be2 {[%clk 0:00:13.9]} 28... b3 {[%clk 0:01:33.8]} 29.
Qc3 {[%clk 0:00:09.7]} 29... b2 {[%clk 0:01:29.6]} 30. Rd1 {[%clk 0:00:05.7]}
30... b1=Q {[%clk 0:01:23.7]} 31. Rxb1 {[%clk 0:00:05.7]} 31... Bxb1 {[%clk
0:01:24.4]} 32. h3 {[%clk 0:00:04.4]} 32... a2 {[%clk 0:01:24.1]} 33. Qb2 {[%clk
0:00:03.8]} 33... Rb8 {[%clk 0:01:20.1]} 34. Qa1 {[%clk 0:00:03.5]} 34... Qc7
{[%clk 0:01:14.2]} 35. Nd2 {[%clk 0:00:01.9]} 35... Qc2 {[%clk 0:01:13]} 0-1

[Event "Late-Titled-Tuesday-Blitz-March-05-2024"]
[Site "Chess.com"]
[Date "2024.03.05"]
[Round "7"]
[White "alexrustemov"]
[Black "Smoking_Crow"]
[Result "1-0"]
[WhiteElo "2802"]
[BlackElo "2617"]
[TimeControl "180+1"]
[EndTime "15:14:04 PST"]
[Termination "alexrustemov won by resignation"]

1. d4 {[%clk 0:02:35.6]} 1... Nf6 {[%clk 0:02:56.1]} 2. c4 {[%clk 0:02:36]} 2...
e6 {[%clk 0:02:56.3]} 3. Nf3 {[%clk 0:02:34.6]} 3... d5 {[%clk 0:02:56.3]} 4.
Nc3 {[%clk 0:02:34.7]} 4... Bb4 {[%clk 0:02:54.8]} 5. Bg5 {[%clk 0:02:34.2]}
5... dxc4 {[%clk 0:02:54.9]} 6. e4 {[%clk 0:02:33.3]} 6... c5 {[%clk 0:02:53]}
7. Bxc4 {[%clk 0:02:31.8]} 7... cxd4 {[%clk 0:02:53.2]} 8. Nxd4 {[%clk
0:02:06.9]} 8... Qa5 {[%clk 0:02:50.1]} 9. Bxf6 {[%clk 0:02:05.8]} 9... Bxc3+
{[%clk 0:02:48.5]} 10. bxc3 {[%clk 0:02:05.1]} 10... Qxc3+ {[%clk 0:02:49.4]}
11. Kf1 {[%clk 0:02:05.5]} 11... gxf6 {[%clk 0:02:49.3]} 12. Rc1 {[%clk
0:02:04.6]} 12... Qa5 {[%clk 0:02:49.1]} 13. h4 {[%clk 0:02:04]} 13... Nc6
{[%clk 0:02:44.4]} 14. Nxc6 {[%clk 0:01:59.4]} 14... bxc6 {[%clk 0:02:43.1]} 15.
Rh3 {[%clk 0:01:39.8]} 15... Ke7 {[%clk 0:02:31.3]} 16. Rd3 {[%clk 0:01:34.4]}
16... Rd8 {[%clk 0:02:25.9]} 17. Rxd8 {[%clk 0:01:30.1]} 17... Qxd8 {[%clk
0:02:26.8]} 18. Qf3 {[%clk 0:01:08.5]} 18... Qd4 {[%clk 0:02:14.7]} 19. Kg1
{[%clk 0:00:55.2]} 19... Rb8 {[%clk 0:02:06.1]} 20. Qa3+ {[%clk 0:00:34.7]}
20... Ke8 {[%clk 0:01:59.3]} 21. Bf1 {[%clk 0:00:34]} 21... Rb2 {[%clk
0:01:56.4]} 22. Qf3 {[%clk 0:00:29.6]} 22... Bb7 {[%clk 0:01:50.3]} 23. Rd1
{[%clk 0:00:24.2]} 23... Rd2 {[%clk 0:01:48]} 24. Rxd2 {[%clk 0:00:22.2]} 24...
Qxd2 {[%clk 0:01:47.8]} 25. Qxf6 {[%clk 0:00:22.4]} 25... Qxa2 {[%clk
0:01:29.9]} 26. Qh8+ {[%clk 0:00:19.9]} 26... Ke7 {[%clk 0:01:25.7]} 27. Qxh7
{[%clk 0:00:20.8]} 27... Qa1 {[%clk 0:01:13.3]} 28. Qh5 {[%clk 0:00:20.1]} 28...
Ba6 {[%clk 0:01:11.2]} 29. Qc5+ {[%clk 0:00:15.9]} 29... Kd7 {[%clk 0:00:55.5]}
30. Qxa7+ {[%clk 0:00:15.2]} 30... Kd6 {[%clk 0:00:56.1]} 31. Qxa6 {[%clk
0:00:15.7]} 31... Qd4 {[%clk 0:00:56.3]} 32. Qd3 {[%clk 0:00:15.8]} 32... Ke5
{[%clk 0:00:55.5]} 33. Qxd4+ {[%clk 0:00:15.6]} 33... Kxd4 {[%clk 0:00:56.4]}
1-0